fUSD/lending_fUSD_20240814
["ID","MTS","AMOUNT","RATE_DAILY","PERIOD"]
[334872768,1723621839804,-500.0,0.00013698,2]
[334872769,1723621839815,-500.0,0.00013698,2]
[334872770,1723621839824,-331.43142579,0.00013698,2]
[334872771,1723621839833,-500.0,0.00013698,2]
[334872772,1723621839843,-500.0,0.00013698,2]
[334872773,1723621839852,-500.0,0.00013698,2]
[334872774,1723621839861,-500.0,0.00013698,2]
[334872775,1723621839871,-500.0,0.00013698,2]
[334872776,1723621839880,-500.0,0.00013698,2]
[334872777,1723621839889,-500.0,0.00013698,2]
[334872778,1723621839899,-500.0,0.00013698,2]
[334872779,1723621839909,-500.0,0.00013698,2]
[334872780,1723621839918,-500.0,0.00013698,2]
[334872781,1723621839928,-500.0,0.00013698,2]
[334872782,1723621839937,-500.0,0.00013698,2]
[334872783,1723621839947,-500.0,0.00013698,2]
[334872785,1723621839956,-500.0,0.00013698,2]
[334872788,1723621839965,-583.83,0.00013698,2]
[334872789,1723621839975,-500.0,0.00013698,2]
[334872790,1723621839984,-611.11,0.00013698,2]
[334872791,1723621839993,-500.0,0.00013698,2]
[334872792,1723621840003,-500.0,0.00013698,2]
[334872793,1723621840013,-500.0,0.00013698,2]
[334872794,1723621840023,-500.0,0.00013698,2]
[334872795,1723621840032,-500.0,0.00013698,2]
[334872796,1723621840041,-500.0,0.00013698,2]
[334872797,1723621840050,-500.0,0.00013698,2]
[334872798,1723621840059,-500.0,0.00013698,2]
[334872799,1723621840069,-500.0,0.00013698,2]
[334872800,1723621840079,-717.2,0.00013698,2]
[334872801,1723621840088,-484.97628047,0.00013698,2]
[334872802,1723621840097,-500.0,0.00013698,2]
[334872803,1723621840107,-510.68,0.00013698,2]
[334872804,1723621840116,-500.0,0.00013698,2]
[334872805,1723621840126,-609.85,0.00013698,2]
[334872806,1723621840135,-500.0,0.00013698,2]
[334872807,1723621840145,-500.0,0.00013698,2]
[334872808,1723621840154,-500.0,0.00013698,2]
[334872809,1723621840163,-500.0,0.00013698,2]
[334872810,1723621840173,-500.0,0.00013698,2]
[334872811,1723621840182,-319.89846427,0.00013698,2]
[334872812,1723621840191,-500.0,0.00013698,2]
[334872813,1723621840201,-500.0,0.00013698,2]
[334872814,1723621840210,-500.0,0.00013698,2]
[334872815,1723621840220,-500.0,0.00013698,2]
[334872816,1723621840230,-500.0,0.00013698,2]
[334872817,1723621840239,-500.0,0.00013698,2]
[334872818,1723621840249,-270.25,0.00013698,2]
[334872819,1723621840258,-500.0,0.00013698,2]
[334872820,1723621840268,-500.0,0.00013698,2]
[334872821,1723621840278,-500.0,0.00013698,2]
[334872822,1723621840287,-500.0,0.00013698,2]
[334872823,1723621840297,-500.0,0.00013698,2]
[334872824,1723621840307,-500.0,0.00013698,2]
[334872825,1723621840317,-328.69262627,0.00013698,2]
[334872826,1723621840327,-500.0,0.00013698,2]
[334872827,1723621840336,-500.0,0.00013698,2]
[334872828,1723621840345,-1012.67,0.00013698,2]
[334872829,1723621840354,-500.0,0.00013698,2]
[334872830,1723621840363,-301.75310022,0.00013698,2]
[334872831,1723621840373,-500.0,0.00013698,2]
[334872832,1723621840383,-500.0,0.00013698,2]
[334872833,1723621840392,-618.34013813,0.00013698,2]
[334872834,1723621840402,-500.0,0.00013698,2]
[334872835,1723621840411,-500.0,0.00013698,2]
[334872836,1723621840420,-546.0,0.00013698,2]
[334872837,1723621840429,-514.88,0.00013698,2]
[334872838,1723621840438,-221.2405896,0.00013698,2]
[334872839,1723621840447,-500.0,0.00013698,2]
[334872840,1723621840457,-500.0,0.00013698,2]
[334872841,1723621840466,-500.0,0.00013698,2]
[334872842,1723621840476,-500.0,0.00013698,2]
[334872843,1723621840485,-500.0,0.00013698,2]
[334872845,1723621840495,-500.0,0.00013698,2]
[334872846,1723621840504,-321.7878219,0.00013698,2]
[334872847,1723621840514,-500.0,0.00013698,2]
[334872848,1723621840523,-500.0,0.00013698,2]
[334872849,1723621840533,-500.0,0.00013698,2]
[334872850,1723621840542,-500.0,0.00013698,2]
[334872851,1723621840552,-500.0,0.00013698,2]
[334872852,1723621840563,-500.0,0.00013698,2]
[334872853,1723621840575,-500.0,0.00013698,2]
[334872854,1723621840584,-500.0,0.00013698,2]
[334872855,1723621840593,-620.35,0.00013698,2]
[334872856,1723621840603,-500.0,0.00013698,2]
[334872857,1723621840612,-500.0,0.00013698,2]
[334872858,1723621840622,-500.0,0.00013698,2]
[334872859,1723621840632,-500.0,0.00013698,2]
[334872860,1723621840641,-500.0,0.00013698,2]
[334872861,1723621840651,-500.0,0.00013698,2]
[334872862,1723621840661,-500.0,0.00013698,2]
[334872863,1723621840671,-500.0,0.00013698,2]
[334872864,1723621840680,-500.0,0.00013698,2]
[334872865,1723621840690,-500.0,0.00013698,2]
[334872866,1723621840700,-500.0,0.00013698,2]
[334872867,1723621840710,-500.0,0.00013698,2]
[334872868,1723621840719,-500.0,0.00013698,2]
[334872869,1723621840729,-500.0,0.00013698,2]
[334872870,1723621840738,-500.0,0.00013698,2]
[334872871,1723621840748,-500.0,0.00013698,2]
[334872872,1723621840757,-500.0,0.00013698,2]
[334872873,1723621840767,-500.0,0.00013698,2]
[334872874,1723621840777,-500.0,0.00013698,2]
[334872875,1723621840787,-500.0,0.00013698,2]
[334872876,1723621840796,-976.03,0.00013698,2]
[334872877,1723621840810,-500.0,0.00013698,2]
[334872878,1723621840822,-500.0,0.00013698,2]
[334872879,1723621840832,-500.0,0.00013698,2]
[334872880,1723621840843,-500.0,0.00013698,2]
[334872881,1723621840853,-500.0,0.00013698,2]
[334872882,1723621840862,-500.0,0.00013698,2]
[334872883,1723621840872,-500.0,0.00013698,2]
[334872884,1723621840882,-500.0,0.00013698,2]
[334872885,1723621840893,-647.36,0.00013698,2]
[334872886,1723621840903,-500.0,0.00013698,2]
[334872887,1723621840913,-314.01373984,0.00013698,2]
[334872888,1723621840923,-500.0,0.00013698,2]
[334872889,1723621840933,-500.0,0.00013698,2]
[334872890,1723621840943,-500.0,0.00013698,2]
[334872891,1723621840952,-500.0,0.00013698,2]
[334872892,1723621840962,-500.0,0.00013698,2]
[334872893,1723621840972,-500.0,0.00013698,2]
[334872894,1723621840982,-500.0,0.00013698,2]
[334872895,1723621840991,-500.0,0.00013698,2]
[334872896,1723621841002,-500.0,0.00013698,2]
[334872897,1723621841012,-434.64267392,0.00013698,2]
[334872898,1723621841022,-500.0,0.00013698,2]
[334872899,1723621841031,-576.1,0.00013698,2]
[334872900,1723621841041,-500.0,0.00013698,2]
[334872901,1723621841051,-500.0,0.00013698,2]
[334872902,1723621841060,-500.0,0.00013698,2]
[334872903,1723621841071,-500.0,0.00013698,2]
[334872904,1723621841081,-500.0,0.00013698,2]
[334872905,1723621841091,-500.0,0.00013698,2]
[334872906,1723621841101,-549.36397002,0.00013698,2]
[334872907,1723621841110,-500.0,0.00013698,2]
[334872908,1723621841120,-500.0,0.00013698,2]
[334872909,1723621841129,-500.0,0.00013698,2]
[334872910,1723621841138,-500.0,0.00013698,2]
[334872911,1723621841148,-500.0,0.00013698,2]
[334872912,1723621841158,-808.89,0.00013698,2]
[334872913,1723621841167,-568.91,0.00013698,2]
[334872914,1723621841177,-500.0,0.00013698,2]
[334872915,1723621841187,-500.0,0.00013698,2]
[334872916,1723621841196,-500.0,0.00013698,2]
[334872917,1723621841206,-500.0,0.00013698,2]
[334872918,1723621841216,-500.0,0.00013698,2]
[334872919,1723621841226,-4092.2,0.00013698,2]
[334872920,1723621841235,-500.0,0.00013698,2]
[334872921,1723621841245,-500.0,0.00013698,2]
[334872922,1723621841255,-500.0,0.00013698,2]
[334872923,1723621841265,-277.89874856,0.00013698,2]
[334872924,1723621841275,-500.0,0.00013698,2]
[334872925,1723621841284,-2212.15,0.00013698,2]
[334872926,1723621841294,-2596.71,0.00013698,2]
[334872927,1723621841304,-500.0,0.00013698,2]
[334872928,1723621841314,-500.0,0.00013698,2]
[334872929,1723621841323,-500.0,0.00013698,2]
[334872930,1723621841333,-500.0,0.00013698,2]
[334872931,1723621841342,-2830.5,0.00013698,2]
[334872932,1723621841353,-500.0,0.00013698,2]
[334872933,1723621841363,-500.0,0.00013698,2]
[334872934,1723621841373,-500.0,0.00013698,2]
[334872935,1723621841383,-501.9,0.00013698,2]
[334872936,1723621841393,-1008.39,0.00013698,2]
[334872937,1723621841403,-550.91,0.00013698,2]
[334872938,1723621841412,-500.0,0.00013698,2]
[334872939,1723621841422,-500.0,0.00013698,2]
[334872940,1723621841432,-500.0,0.00013698,2]
[334872941,1723621841442,-500.0,0.00013698,2]
[334872942,1723621841452,-1114.96,0.00013698,2]
[334872943,1723621841461,-500.0,0.00013698,2]
[334872944,1723621841471,-500.0,0.00013698,2]
[334872945,1723621841480,-24982.22,0.00013698,2]
[334872946,1723621841490,-3139.26,0.00013698,2]
[334872947,1723621841499,-500.0,0.00013698,2]
[334872948,1723621841509,-526.97,0.00013698,2]
[334872949,1723621841518,-536.43815279,0.00013698,2]
[334872950,1723621841528,-500.0,0.00013698,2]
[334872951,1723621841538,-918.5,0.00013698,2]
[334872952,1723621841547,-500.0,0.00013698,2]
[334872953,1723621841557,-2509.34,0.00013698,2]
[334872954,1723621841567,-601.46,0.00013698,2]
[334872955,1723621841577,-540.98,0.00013698,2]
[334872956,1723621841586,-500.0,0.00013698,2]
[334872957,1723621841595,-500.0,0.00013698,2]
[334872958,1723621841605,-500.0,0.00013698,2]
[334872959,1723621841614,-331.94978915,0.00013698,2]
[334872960,1723621841623,-500.0,0.00013698,2]
[334872961,1723621841633,-500.0,0.00013698,2]
[334872962,1723621841642,-1122.32,0.00013698,2]
[334872963,1723621841652,-500.0,0.00013698,2]
[334872964,1723621841661,-500.0,0.00013698,2]
[334872965,1723621841672,-1160.53,0.00013698,2]
[334872966,1723621841682,-500.0,0.00013698,2]
[334872967,1723621841691,-734.16,0.00013698,2]
[334872968,1723621841701,-500.0,0.00013698,2]
[334872969,1723621841711,-2229.81,0.00013698,2]
[334872970,1723621841720,-500.0,0.00013698,2]
[334872971,1723621841730,-500.0,0.00013698,2]
[334872972,1723621841740,-737.79,0.00013698,2]
[334872973,1723621841749,-500.0,0.00013698,2]
[334872974,1723621841759,-500.0,0.00013698,2]
[334872975,1723621841769,-500.0,0.00013698,2]
[334872976,1723621841778,-500.0,0.00013698,2]
[334872977,1723621841787,-500.0,0.00013698,2]
[334872978,1723621841797,-692.55,0.00013698,2]
[334872979,1723621841808,-500.0,0.00013698,2]
[334872980,1723621841819,-1596.45,0.00013698,2]
[334872981,1723621841828,-500.0,0.00013698,2]
[334872982,1723621841838,-568.37,0.00013698,2]
[334872983,1723621841848,-1486.08,0.00013698,2]
[334872984,1723621841857,-500.0,0.00013698,2]
[334872985,1723621841867,-500.0,0.00013698,2]
[334872986,1723621841878,-712.53,0.00013698,2]
[334872987,1723621841887,-602.14,0.00013698,2]
[334872988,1723621841898,-500.0,0.00013698,2]
[334872989,1723621841908,-3109.81,0.00013698,2]
[334872990,1723621841918,-864.58,0.00013698,2]
[334872991,1723621841928,-500.0,0.00013698,2]
[334872992,1723621841938,-500.0,0.00013698,2]
[334872993,1723621841949,-763.59,0.00013698,2]
[334872994,1723621841958,-500.0,0.00013698,2]
[334872995,1723621841967,-758.54,0.00013698,2]
[334872996,1723621841977,-567.91,0.00013698,2]
[334872997,1723621841986,-500.0,0.00013698,2]
[334872998,1723621841995,-586.95,0.00013698,2]
[334872999,1723621842005,-500.0,0.00013698,2]
[334873000,1723621842015,-500.0,0.00013698,2]
[334873001,1723621842026,-500.0,0.00013698,2]
[334873002,1723621842035,-500.0,0.00013698,2]
[334873003,1723621842045,-500.0,0.00013698,2]
[334873004,1723621842055,-500.0,0.00013698,2]
[334873005,1723621842066,-500.0,0.00013698,2]
[334873006,1723621842075,-500.0,0.00013698,2]
[334873007,1723621842084,-500.0,0.00013698,2]
[334873008,1723621842093,-500.0,0.00013698,2]
[334873009,1723621842102,-500.0,0.00013698,2]
[334873010,1723621842111,-500.0,0.00013698,2]
[334873011,1723621842121,-500.0,0.00013698,2]
[334873012,1723621842131,-500.0,0.00013698,2]
[334873013,1723621842139,-500.0,0.00013698,2]
[334873014,1723621842148,-500.0,0.00013698,2]
[334873015,1723621842157,-500.0,0.00013698,2]
[334873016,1723621842165,-726.68,0.00013698,2]
[334873017,1723621842175,-500.0,0.00013698,2]
[334873018,1723621842184,-500.0,0.00013698,2]
[334873019,1723621842194,-500.0,0.00013698,2]
[334873020,1723621842204,-500.0,0.00013698,2]
[334873021,1723621842213,-500.0,0.00013698,2]
[334873022,1723621842222,-771.26,0.00013698,2]
[334873023,1723621842232,-500.0,0.00013698,2]
[334873024,1723621842241,-500.0,0.00013698,2]
[334873025,1723621842251,-500.0,0.00013698,2]
[334873026,1723621842260,-500.0,0.00013698,2]
[334873027,1723621842270,-555.33911952,0.00013698,2]
[334873028,1723621842280,-2414.57,0.00013698,2]
[334873029,1723621842289,-864.45,0.00013698,2]
[334873030,1723621842298,-500.0,0.00013698,2]
[334873031,1723621842307,-500.0,0.00013698,2]
[334873032,1723621842319,-500.0,0.00013698,2]
[334873033,1723621842328,-631.12,0.00013698,2]
[334873034,1723621842337,-500.0,0.00013698,2]
[334873035,1723621842347,-500.0,0.00013698,2]
[334873036,1723621842357,-500.0,0.00013698,2]
[334873037,1723621842367,-1486.22,0.00013698,2]
[334873038,1723621842377,-500.0,0.00013698,2]
[334873039,1723621842386,-613.84,0.00013698,2]
[334873040,1723621842395,-500.0,0.00013698,2]
[334873041,1723621842406,-601.68,0.00013698,2]
[334873042,1723621842416,-500.0,0.00013698,2]
[334873043,1723621842427,-500.0,0.00013698,2]
[334873044,1723621842437,-500.0,0.00013698,2]
[334873045,1723621842448,-515.62,0.00013698,2]
[334873046,1723621842459,-500.0,0.00013698,2]
[334873047,1723621842468,-500.0,0.00013698,2]
[334873048,1723621842478,-500.0,0.00013698,2]
[334873049,1723621842487,-500.0,0.00013698,2]
[334873050,1723621842496,-904.52,0.00013698,2]
[334873051,1723621842505,-3571.76,0.00013698,2]
[334873052,1723621842514,-500.0,0.00013698,2]
[334873053,1723621842523,-514.98,0.00013698,2]
[334873054,1723621842533,-500.0,0.00013698,2]
[334873055,1723621842542,-1319.58,0.00013698,2]
[334873056,1723621842551,-500.0,0.00013698,2]
[334873057,1723621842560,-500.0,0.00013698,2]
[334873058,1723621842571,-500.0,0.00013698,2]
[334873059,1723621842580,-500.0,0.00013698,2]
[334873060,1723621842590,-834.78,0.00013698,2]
[334873061,1723621842599,-500.0,0.00013698,2]
[334873062,1723621842608,-500.0,0.00013698,2]
[334873063,1723621842617,-500.0,0.00013698,2]
[334873064,1723621842627,-926.56,0.00013698,2]
[334873065,1723621842636,-500.0,0.00013698,2]
[334873066,1723621842645,-500.0,0.00013698,2]
[334873067,1723621842654,-500.0,0.00013698,2]
[334873068,1723621842670,-500.0,0.00013698,2]
[334873069,1723621842679,-500.0,0.00013698,2]
[334873070,1723621842689,-500.0,0.00013698,2]
[334873071,1723621842698,-500.0,0.00013698,2]
[334873072,1723621842707,-1501.85,0.00013698,2]
[334873073,1723621842718,-500.0,0.00013698,2]
[334873074,1723621842727,-500.0,0.00013698,2]
[334873075,1723621842737,-560.61,0.00013698,2]
[334873076,1723621842746,-500.0,0.00013698,2]
[334873077,1723621842755,-1432.96,0.00013698,2]
[334873078,1723621842764,-1119.73,0.00013698,2]
[334873079,1723621842774,-652.63,0.00013698,2]
[334873080,1723621842783,-500.0,0.00013698,2]
[334873081,1723621842793,-500.0,0.00013698,2]
[334873082,1723621842807,-500.0,0.00013698,2]
[334873083,1723621842817,-530.48,0.00013698,2]
[334873084,1723621842827,-500.0,0.00013698,2]
[334873085,1723621842837,-640.46,0.00013698,2]
[334873086,1723621842846,-500.0,0.00013698,2]
[334873087,1723621842855,-500.0,0.00013698,2]
[334873088,1723621842863,-772.17,0.00013698,2]
[334873089,1723621842873,-500.0,0.00013698,2]
[334873090,1723621842883,-500.0,0.00013698,2]
[334873091,1723621842893,-500.0,0.00013698,2]
[334873092,1723621842902,-500.0,0.00013698,2]
[334873093,1723621842912,-500.0,0.00013698,2]
[334873094,1723621842921,-779.2,0.00013698,2]
[334873095,1723621842930,-877.25,0.00013698,2]
[334873096,1723621842940,-777.22,0.00013698,2]
[334873097,1723621842949,-500.0,0.00013698,2]
[334873098,1723621842958,-500.0,0.00013698,2]
[334873099,1723621842967,-500.0,0.00013698,2]
[334873100,1723621842977,-500.0,0.00013698,2]
[334873101,1723621842987,-1662.97,0.00013698,2]
[334873102,1723621842996,-204.39,0.00013698,2]
[334873103,1723621843005,-500.0,0.00013698,2]
[334873104,1723621843015,-500.0,0.00013698,2]
[334873105,1723621843024,-500.0,0.00013698,2]
[334873106,1723621843034,-1180.44,0.00013698,2]
[334873107,1723621843043,-500.0,0.00013698,2]
[334873108,1723621843053,-500.0,0.00013698,2]
[334873109,1723621843064,-500.0,0.00013698,2]
[334873110,1723621843074,-500.0,0.00013698,2]
[334873112,1723621843085,-1317.81,0.00013698,2]
[334873115,1723621843095,-1282.56,0.00013698,2]
[334873116,1723621843105,-500.0,0.00013698,2]
[334873118,1723621843116,-500.0,0.00013698,2]
[334873121,1723621843126,-500.0,0.00013698,2]
[334873122,1723621843135,-500.0,0.00013698,2]
[334873124,1723621843145,-500.0,0.00013698,2]
[334873126,1723621843154,-500.0,0.00013698,2]
[334873129,1723621843164,-556.41,0.00013698,2]
[334873131,1723621843173,-673.74,0.00013698,2]
[334873133,1723621843182,-888.26,0.00013698,2]
[334873135,1723621843192,-2733.0,0.00013698,2]
[334873136,1723621843200,-500.0,0.00013698,2]
[334873137,1723621843210,-500.0,0.00013698,2]
[334873138,1723621843220,-500.0,0.00013698,2]
[334873139,1723621843229,-500.0,0.00013698,2]
[334873140,1723621843239,-945.86,0.00013698,2]
[334873141,1723621843248,-500.0,0.00013698,2]
[334873142,1723621843258,-1405.14,0.00013698,2]
[334873143,1723621843267,-500.0,0.00013698,2]
[334873144,1723621843276,-731.76,0.00013698,2]
[334873145,1723621843286,-500.0,0.00013698,2]
[334873146,1723621843296,-1134.41,0.00013698,2]
[334873147,1723621843305,-619.96,0.00013698,2]
[334873148,1723621843315,-500.0,0.00013698,2]
[334873149,1723621843325,-500.0,0.00013698,2]
[334873150,1723621843334,-500.0,0.00013698,2]
[334873151,1723621843343,-500.0,0.00013698,2]
[334873152,1723621843352,-3172.67,0.00013698,2]
[334873153,1723621843362,-500.0,0.00013698,2]
[334873154,1723621843371,-500.0,0.00013698,2]
[334873155,1723621843380,-577.68,0.00013698,2]
[334873156,1723621843390,-500.0,0.00013698,2]
[334873157,1723621843399,-2253.79,0.00013698,2]
[334873158,1723621843409,-835.66,0.00013698,2]
[334873159,1723621843418,-922.68,0.00013698,2]
[334873160,1723621843427,-500.0,0.00013698,2]
[334873161,1723621843436,-687.68,0.00013698,2]
[334873162,1723621843448,-500.0,0.00013698,2]
[334873163,1723621843457,-846.01,0.00013698,2]
[334873164,1723621843466,-500.0,0.00013698,2]
[334873165,1723621843476,-623.5713266,0.00013698,2]
[334873166,1723621843485,-2671.29,0.00013698,2]
[334873167,1723621843495,-500.0,0.00013698,2]
[334873168,1723621843504,-500.0,0.00013698,2]
[334873169,1723621843513,-500.0,0.00013698,2]
[334873170,1723621843522,-500.0,0.00013698,2]
[334873171,1723621843532,-8933.93,0.00013698,2]
[334873172,1723621843542,-500.0,0.00013698,2]
[334873173,1723621843551,-500.0,0.00013698,2]
[334873174,1723621843561,-892.08,0.00013698,2]
[334873175,1723621843571,-500.0,0.00013698,2]
[334873176,1723621843581,-1953.05,0.00013698,2]
[334873177,1723621843591,-500.0,0.00013698,2]
[334873178,1723621843601,-500.0,0.00013698,2]
[334873179,1723621843610,-542.7,0.00013698,2]
[334873180,1723621843620,-500.0,0.00013698,2]
[334873182,1723621843629,-500.0,0.00013698,2]
[334873184,1723621843641,-500.0,0.00013698,2]
[334873186,1723621843650,-1110.21,0.00013698,2]
[334873187,1723621843660,-723.27,0.00013698,2]
[334873189,1723621843669,-171.10957037,0.00013698,2]
[334873191,1723621843679,-500.0,0.00013698,2]
[334873193,1723621843689,-1106.51,0.00013698,2]
[334873195,1723621843698,-783.1,0.00013698,2]
[334873197,1723621843708,-1830.0,0.00013698,2]
[334873200,1723621843717,-1017.06,0.00013698,2]
[334873203,1723621843727,-785.52,0.00013698,2]
[334873204,1723621843737,-1738.9,0.00013698,2]
[334873206,1723621843746,-500.0,0.00013698,2]
[334873208,1723621843756,-507.44,0.00013698,2]
[334873211,1723621843766,-500.0,0.00013698,2]
[334873212,1723621843775,-128166.034397,0.000138,2]
[334873214,1723621843785,-185.34119542,0.00013859,2]
[334873216,1723621843794,-12284.36117076,0.00013862,2]
[334873219,1723621843824,-5120.82061111,0.00013862,2]
[334873221,1723621843840,-1084.0785141,0.00013862,2]
[334873226,1723621844362,-1998.84301509,0.00011865,2]
[334873227,1723621844378,-116.86836158,0.00011865,2]
[334873228,1723621844389,-10000.0,0.00013176,2]
[334873229,1723621844399,-1330.85153938,0.00013862,2]
[334873230,1723621845136,-796.49,0.00013698,2]
[334873231,1723621845146,-28351.1533048,0.00013862,2]
[334873232,1723621845160,-580.0,0.00013862,2]
[334873233,1723621845172,-32195.70395295,0.00013862,2]
[334873234,1723621845182,-28879.08597504,0.00013872,2]
[334873237,1723621846622,-56685.03162,0.00013872,2]
[334873240,1723621846634,-88219.63000496,0.00013872,2]
[334873242,1723621846644,-26982.323031,0.0001389,2]
[334873244,1723621846654,-30104.4416048,0.000139,2]
[334873246,1723621846664,-165.15580295,0.00013902,2]
[334873248,1723621846673,-6947.17883187,0.00013903,2]
[334873250,1723621846681,-1257.0,0.00013913,2]
[334873252,1723621846691,-1542.0,0.00013913,2]
[334873254,1723621846700,-622.0,0.00013913,2]
[334873256,1723621846709,-1924.0,0.00013913,2]
[334873258,1723621846719,-509.198,0.00013913,2]
[334873260,1723621846729,-815.087,0.00013913,2]
[334873262,1723621846738,-1137.693,0.00013913,2]
[334873264,1723621846748,-164.504,0.00013913,2]
[334873266,1723621846758,-647.223,0.00013913,2]
[334873268,1723621846768,-551.0,0.00013913,2]
[334873270,1723621846777,-150.0,0.00013913,2]
[334873272,1723621846787,-1895.0,0.00013913,2]
[334873274,1723621846797,-247.0,0.00013913,2]
[334873276,1723621846809,-1178.0,0.00013913,2]
[334873278,1723621846820,-3292.0,0.00013913,2]
[334873280,1723621846830,-5134.0,0.00013913,2]
[334873282,1723621846839,-289.0,0.00013913,2]
[334873284,1723621846848,-5843.0,0.00013913,2]
[334873286,1723621846858,-21761.0,0.00013913,2]
[334873287,1723621846867,-1204.0,0.00013913,2]
[334873289,1723621846876,-1673.0,0.00013913,2]
[334873291,1723621846887,-2315.72627729,0.00013942,2]
[334873293,1723621846897,-18525.8102183,0.00013952,2]
[334873295,1723621846906,-14389.22086565,0.00013962,2]
[334873297,1723621846917,-8768.04190725,0.00013962,2]
[334873299,1723621846926,-500.0,0.00013972,2]
[334873301,1723621846935,-587.82,0.00013972,2]
[334873303,1723621846944,-726.46,0.00013972,2]
[334873305,1723621846954,-500.0,0.00013972,2]
[334873307,1723621846963,-500.0,0.00013972,2]
[334873309,1723621846973,-691.2,0.00013972,2]
[334873311,1723621846982,-500.0,0.00013972,2]
[334873312,1723621846991,-500.0,0.00013972,2]
[334873314,1723621847001,-778.75,0.00013972,2]
[334873316,1723621847010,-500.0,0.00013972,2]
[334873318,1723621847019,-500.0,0.00013972,2]
[334873320,1723621847029,-444.80078648,0.00013972,2]
[334873322,1723621847038,-500.0,0.00013972,2]
[334873324,1723621847048,-500.0,0.00013972,2]
[334873326,1723621847057,-526.90994365,0.00013972,2]
[334873327,1723621847068,-500.0,0.00013972,2]
[334873329,1723621847077,-500.0,0.00013972,2]
[334873331,1723621847086,-500.0,0.00013972,2]
[334873333,1723621847095,-372.30477387,0.00013972,2]
[334873335,1723621847105,-405.214654,0.00013972,2]
[334873337,1723621847115,-500.0,0.00013972,2]
[334873339,1723621847124,-500.0,0.00013972,2]
[334873341,1723621847133,-500.0,0.00013972,2]
[334873343,1723621847143,-500.0,0.00013972,2]
[334873345,1723621847152,-1100.39,0.00013972,2]
[334873347,1723621847162,-500.0,0.00013972,2]
[334873349,1723621847171,-500.0,0.00013972,2]
[334873351,1723621847180,-568.25,0.00013972,2]
[334873352,1723621847190,-503.18752518,0.00013972,2]
[334873355,1723621847200,-500.0,0.00013972,2]
[334873356,1723621847209,-500.0,0.00013972,2]
[334873358,1723621847219,-500.0,0.00013972,2]
[334873360,1723621847228,-500.0,0.00013972,2]
[334873362,1723621847238,-500.0,0.00013972,2]
[334873365,1723621847248,-500.0,0.00013972,2]
[334873367,1723621847258,-560.77194417,0.00013972,2]
[334873369,1723621847268,-500.0,0.00013972,2]
[334873371,1723621847277,-500.0,0.00013972,2]
[334873373,1723621847287,-500.0,0.00013972,2]
[334873374,1723621847297,-505.81,0.00013972,2]
[334873376,1723621847306,-512.97,0.00013972,2]
[334873378,1723621847315,-500.0,0.00013972,2]
[334873380,1723621847326,-500.0,0.00013972,2]
[334873382,1723621847335,-500.0,0.00013972,2]